bitfinex/quotes_SOLUSD_20251118
["timestamp","ask_amount","ask_price","bid_price","bid_amount"]
[1763479148802,0.1,139.78,139.73,4.46]
[1763479148969,0.63,139.77,139.7,5.17]
[1763479149161,5.45078662,139.77,139.7,4.46]
[1763479149493,5.45078662,139.77,139.7,10.41570069]
[1763479149688,4.82078662,139.77,139.71,5.95570069]
[1763479149902,18.85096,139.78,139.72,5.95570069]
[1763479150066,18.85096,139.78,139.71,5.95570069]
[1763479150067,4.82086208,139.77,139.71,5.95570069]
[1763479150391,18.22096,139.78,139.73,5.95570069]
[1763479150562,4.46,139.8,139.73,0.71]
[1763479150762,4.46,139.8,139.73,6.66570069]
[1763479150992,5.95570069,139.82,139.75,5.95570069]
[1763479151199,5.95570069,139.84,139.77,5.95570069]
[1763479151485,4.81984731,139.86,139.79,5.95570069]
[1763479151688,10.41570069,139.87,139.79,5.95570069]
[1763479151862,10.41570069,139.87,139.78,5.17]
[1763479152057,5.95570069,139.85,139.78,5.17]
[1763479152310,4.46,139.87,139.79,5.95570069]
[1763479152311,5.95570069,139.86,139.79,5.95570069]
[1763479152493,15.74452838,139.85,139.78,5.17]
[1763479152685,5.95570069,139.84,139.78,4.46]
[1763479152860,5.95570069,139.82,139.74,4.46]
[1763479153063,4.81984731,139.82,139.76,5.95570069]
[1763479153288,28.53666069,139.83,139.76,5.95570069]
[1763479153500,18.12096,139.79,139.74,4.46]
[1763479153703,24.07666069,139.79,139.74,4.46]
[1763479153897,24.07666069,139.79,139.71,0.67]
[1763479154084,24.07666069,139.79,139.72,5.95570069]
[1763479154402,24.07666069,139.79,139.71,0.67]
[1763479154403,18.12096,139.79,139.74,5.95570069]
[1763479154611,18.12096,139.79,139.73,5.95570069]
[1763479154775,18.12096,139.79,139.73,6.62570069]
[1763479154981,18.12096,139.79,139.7,4.46]
[1763479154982,22.58096,139.81,139.76,5.95570069]
[1763479155197,10.41570069,139.83,139.76,5.95570069]
[1763479155496,4.46,139.83,139.76,5.95570069]
[1763479155708,4.46,139.83,139.7,14.24882769]
[1763479155885,5.95570069,139.8,139.71,0.67]
[1763479156089,5.95570069,139.8,139.73,5.95570069]
[1763479156287,27.90978769,139.82,139.73,5.95570069]
[1763479156501,5.95570069,139.8,139.73,6.62570069]
[1763479156707,5.95570069,139.78,139.71,5.95570069]
[1763479156911,24.07666069,139.79,139.71,6.62570069]
[1763479157208,24.07666069,139.79,139.72,6.62570069]
[1763479157371,24.07666069,139.8,139.73,6.62570069]
[1763479157572,18.12096,139.8,139.72,5.95570069]
[1763479157771,18.12096,139.8,139.74,5.95570069]
[1763479157972,18.12096,139.8,139.73,5.95570069]
[1763479158196,18.12096,139.8,139.74,0.67]
[1763479158378,5.95570069,139.83,139.75,5.95570069]
[1763479158584,4.80795255,139.87,139.77,5.95570069]
[1763479158790,10.41570069,139.86,139.77,5.95570069]
[1763479159083,15.22365324,139.86,139.78,0.67]
[1763479159286,4.80795255,139.86,139.81,5.95570069]
[1763479159587,5.95570069,139.88,139.79,5.95570069]
[1763479159914,18.12096,139.83,139.78,5.95570069]
[1763479160377,18.12096,139.83,139.78,6.64570069]
[1763479160579,5.95570069,139.88,139.8,5.95570069]
[1763479160796,4.46,139.87,139.8,5.95570069]
[1763479161105,18.12096,139.86,139.8,5.95570069]
[1763479161311,4.8066083,139.85,139.78,5.95570069]
[1763479161478,4.8066083,139.85,139.78,13.10972845]
[1763479161684,4.8066083,139.85,139.8,5.95570069]
[1763479161881,4.8066083,139.85,139.79,0.69]
[1763479161882,4.8066083,139.86,139.84,5.95570069]
[1763479162085,4.44,139.9,139.84,5.95570069]
[1763479162384,34.43123762,139.9,139.83,5.95570069]
[1763479162584,4.8066083,139.89,139.83,5.95570069]
[1763479162784,4.44,139.9,139.83,5.95570069]
[1763479162992,18.12096,139.89,139.83,5.95570069]
[1763479163196,4.8066083,139.88,139.83,5.95570069]
[1763479163420,4.8066083,139.88,139.83,6.64570069]
[1763479163587,4.8066083,139.88,139.85,5.95570069]
[1763479163787,18.12096,139.89,139.85,5.95570069]
[1763479163989,4.8066083,139.88,139.87,5.95570069]
[1763479164179,11.87027762,139.94,139.87,27.33402434]
[1763479164384,11.87027762,139.96,139.93,5.95570069]
[1763479164612,11.87027762,139.96,139.9,5.95570069]
[1763479164613,16.67688592,139.97,139.95,5.95570069]
[1763479164786,35.42578942,140.0,139.92,4.44]
[1763479164787,4.8066083,139.96,139.92,4.44]
[1763479164986,4.8066083,139.99,139.95,5.95570069]
[1763479165292,23.78286595,140.04,139.95,4.44]
[1763479165607,23.78286595,140.04,139.97,5.95570069]
[1763479165904,41.90382595,140.04,139.97,5.95570069]
[1763479166113,41.90382595,140.04,139.97,6.64570069]
[1763479166309,41.90382595,140.04,139.97,5.95570069]
[1763479166489,23.42578942,140.0,139.93,5.95570069]
[1763479166692,23.88358701,139.98,139.91,4.44]
[1763479166900,23.88358701,139.98,139.77,33.55992914]
[1763479166901,18.12096,139.95,139.9,5.95570069]
[1763479167212,18.12096,139.95,139.88,0.69]
[1763479167423,18.12096,139.96,139.87,4.44]
[1763479167598,23.88358701,139.98,139.87,4.44]
[1763479167599,46.44454701,139.98,139.91,5.95570069]
[1763479168124,42.00454701,139.98,139.91,5.95570069]
[1763479168328,42.00454701,139.98,139.93,5.95570069]
[1763479168530,42.00454701,139.98,139.94,5.95570069]
[1763479168701,23.42578942,140.0,139.92,6.64570069]
[1763479168907,23.0679744,140.06,139.96,5.95570069]
[1763479169214,1.93593088,140.08,140.01,5.95570069]
[1763479169796,10.39570069,140.07,139.99,5.95570069]
[1763479169998,18.12096,140.03,140.01,5.95570069]
[1763479170204,4.44,140.07,140.01,5.95570069]
[1763479170595,4.44,140.07,140.01,6.64570069]
[1763479170797,11.72475857,140.08,140.03,5.95570069]
[1763479170999,1.93593088,140.08,140.05,5.95570069]
[1763479171208,1.93593088,140.08,140.02,0.69]
[1763479171690,1.93593088,140.08,140.06,5.95570069]
[1763479172018,1.93593088,140.08,140.06,10.39570069]
[1763479172344,1.93593088,140.08,140.06,4.44]
[1763479172518,1.93593088,140.08,140.06,5.13]
[1763479172828,0.66,140.15,140.07,0.69]
[1763479173034,0.66,140.15,140.12,5.95570069]
[1763479173199,18.78096,140.15,140.1,5.95570069]
[1763479173389,0.66,140.14,140.1,5.95570069]
[1763479173593,0.66,140.14,140.08,10.39570069]
[1763479173817,18.78096,140.14,140.08,4.44]
[1763479174009,18.78096,140.14,140.02,21.10825874]
[1763479174215,18.12096,140.12,140.01,5.13]
[1763479174426,24.07666069,140.12,140.05,5.95570069]
[1763479174715,0.66,140.11,140.01,4.44]
[1763479174920,5.95570069,140.1,140.02,5.95570069]
[1763479175119,5.95570069,140.1,139.98,0.69]
[1763479175120,5.95570069,140.08,140.0,4.44]
[1763479175289,18.12096,140.08,140.0,10.39570069]
[1763479175492,18.78096,140.07,140.0,4.44]
[1763479175689,18.78096,140.07,139.95,4.44]
[1763479175890,5.95570069,140.05,139.98,5.95570069]
[1763479176122,0.66,140.06,139.99,5.95570069]
[1763479176332,18.12096,140.08,139.96,7.14484931]
[1763479176517,0.66,140.09,140.03,5.95570069]
[1763479176828,5.95570069,140.07,140.01,4.44]
[1763479177001,18.12096,140.08,140.01,10.39570069]
[1763479177199,6.61570069,140.07,140.01,4.44]
[1763479177397,5.95570069,140.05,140.01,4.44]
[1763479177608,0.66,140.06,140.01,10.39570069]
[1763479177809,0.66,140.06,140.02,5.95570069]
[1763479178009,6.61570069,140.06,140.01,4.44]
[1763479178191,5.95570069,140.04,139.98,4.44]
[1763479178397,6.61570069,140.05,139.98,10.39570069]
[1763479178597,0.66,140.06,139.99,4.44]
[1763479178827,6.61570069,140.06,140.0,5.95570069]
[1763479179143,5.95570069,140.05,139.99,4.44]
[1763479179425,5.95570069,140.0,139.94,4.44]
[1763479179925,18.12096,140.02,139.94,4.44]
[1763479179926,5.95570069,139.96,139.94,4.44]
[1763479180427,5.95570069,139.95,139.94,4.44]
[1763479180895,5.95570069,139.96,139.94,4.44]
[1763479181223,0.66,140.01,139.94,4.44]
[1763479181521,5.95570069,140.0,139.95,0.69]
[1763479181719,5.95570069,140.02,139.95,0.69]
[1763479181894,0.66,140.09,139.97,5.95570069]
[1763479182094,0.66,140.09,139.99,5.95570069]
[1763479182347,0.66,140.09,140.01,7.14234697]
[1763479182629,0.66,140.09,140.0,12.27270639]
[1763479182790,5.95570069,140.06,140.01,0.69]
[1763479182994,0.67,140.12,140.01,6.64570069]
[1763479183528,5.95570069,140.07,140.02,0.69]
[1763479184100,4.44,140.16,140.02,6.64570069]
[1763479184303,5.95570069,140.09,140.04,7.1408169]
[1763479184526,5.95570069,140.09,140.05,4.44]
[1763479184726,0.67,140.15,140.05,4.44]
[1763479184932,14.22882769,140.18,139.98,18.12096]
[1763479184933,5.95570069,140.07,139.98,18.12096]
[1763479185234,5.95570069,140.07,140.03,0.69]
[1763479185398,5.95570069,140.06,140.04,4.44]
[1763479185603,5.95570069,140.07,140.04,4.44]
[1763479185821,5.95570069,140.07,140.04,5.13]
[1763479186023,5.95570069,140.07,140.05,0.69]
[1763479186329,18.79096,140.12,140.05,0.69]
[1763479186330,18.12096,140.12,140.05,0.69]
[1763479186533,5.95570069,140.08,140.05,0.69]
[1763479186912,18.12096,140.12,140.05,0.69]
[1763479187122,5.95570069,140.07,140.05,0.69]
[1763479187430,18.79096,140.11,140.05,4.44]
[1763479187631,5.95570069,140.1,140.05,4.44]
[1763479187837,0.67,140.1,140.05,4.44]
[1763479188009,5.95570069,140.06,140.05,4.44]
[1763479188418,5.95570069,140.06,139.99,5.95570069]
[1763479188419,6.62570069,140.06,139.99,5.95570069]
[1763479188624,5.95570069,140.02,140.0,4.44]
[1763479189137,5.95570069,140.03,140.0,4.44]
[1763479189348,5.95570069,140.02,140.0,4.44]
[1763479189508,5.95570069,140.02,139.91,35.73695034]
[1763479189509,5.95570069,140.01,139.96,0.69]
[1763479189710,0.67,140.01,139.96,4.44]
[1763479189915,5.95570069,139.97,139.96,4.44]
[1763479190352,5.95570069,139.97,139.9,29.26444662]
[1763479190508,5.95570069,139.92,139.89,5.93473819]
[1763479190713,5.95570069,139.91,139.88,10.37473819]
[1763479190909,5.95570069,139.91,139.89,5.2430811]
[1763479191137,0.67,139.96,139.9,11.17781929]
[1763479191337,5.95570069,139.91,139.9,5.93473819]
[1763479191553,5.95570069,139.91,139.89,5.13]
[1763479191847,5.95570069,139.9,139.89,4.44]
[1763479192221,5.95570069,139.9,139.88,5.93473819]
[1763479192526,5.95570069,139.89,139.88,5.93473819]
[1763479192728,5.95570069,139.89,139.87,10.37473819]
[1763479193053,14.22882769,139.98,139.88,11.8762329]
[1763479193054,18.12096,139.95,139.88,11.8762329]
[1763479193229,5.95570069,139.92,139.9,5.93473819]
[1763479193544,18.79096,139.97,139.9,5.93473819]
[1763479193741,5.95570069,139.91,139.9,5.93473819]
[1763479193959,5.95570069,139.91,139.89,5.93473819]
[1763479194118,5.95570069,139.9,139.89,5.93473819]
[1763479194316,5.95570069,139.9,139.89,11.18878794]
[1763479194564,5.95570069,139.9,139.89,5.25404975]
[1763479194748,0.67,139.96,139.89,5.25404975]
[1763479194923,5.95570069,139.91,139.9,11.16600346]
[1763479195123,5.95570069,139.94,139.9,17.20125033]
[1763479195344,18.79096,139.96,139.91,21.64125033]
[1763479195345,5.95570069,139.93,139.91,21.64125033]
[1763479195551,5.95570069,139.93,139.92,17.20125033]
[1763479195759,2.0,140.09,139.92,11.89975044]
[1763479195924,0.67,140.03,140.0,5.89651507]
[1763479196254,0.67,140.03,140.01,5.89651507]
[1763479196435,5.95570069,140.02,140.01,5.89651507]
[1763479196634,5.95570069,140.02,140.0,5.89651507]
[1763479196851,5.95570069,140.01,140.0,5.89651507]
[1763479197041,0.67,140.01,140.0,5.24228862]
[1763479197349,6.62570069,140.01,140.0,5.24228862]
[1763479197650,6.62570069,140.01,140.0,11.13449842]
[1763479197849,6.62570069,140.01,140.0,5.24228862]
[1763479198152,18.12096,140.0,139.97,10.33253372]
[1763479198457,18.12096,140.0,139.97,4.44]
[1763479198658,5.95570069,139.98,139.97,4.44]
[1763479199133,5.95570069,139.99,139.97,9.68301251]
[1763479199333,5.95570069,139.99,139.98,5.24301251]
[1763479199558,0.67,140.0,139.98,5.24301251]
[1763479199867,5.95570069,139.99,139.97,4.44]
[1763479200152,18.12096,139.97,139.96,5.89253372]
[1763479200362,24.07666069,139.97,139.96,5.24600563]
[1763479200574,18.12096,139.97,139.96,11.13853935]
[1763479200743,5.95570069,140.0,139.96,5.24600563]
[1763479200935,5.95570069,139.98,139.97,13.10898157]
[1763479201244,24.07666069,139.98,139.97,11.14090926]
[1763479201451,24.07666069,139.98,139.88,16.46992081]
[1763479201452,18.12096,139.95,139.91,7.86297594]
[1763479201766,5.95570069,139.92,139.88,0.69]
[1763479201932,5.95570069,139.9,139.88,0.69]
[1763479202333,5.95570069,139.92,139.88,0.69]
[1763479202547,18.12096,139.97,139.89,5.95570069]
[1763479202734,5.95570069,139.95,139.89,5.95570069]
[1763479202934,2.0,140.04,139.89,5.95570069]
[1763479202935,2.0,140.07,139.92,5.95570069]
[1763479203172,4.44,140.05,139.94,5.95570069]
[1763479203335,5.95570069,139.99,139.93,5.13]
[1763479203539,5.95570069,139.99,139.94,0.69]
[1763479203749,18.12096,140.01,139.94,0.69]
[1763479203955,5.95570069,139.99,139.94,6.64570069]
[1763479204347,22.56096,140.06,139.95,0.69]
[1763479204545,5.95570069,140.1,139.96,5.95570069]
[1763479204765,5.95570069,140.02,139.97,11.08570069]
[1763479204959,18.12096,140.06,139.97,5.13]
[1763479205263,10.50367507,140.16,140.01,9.88542576]
[1763479205444,9.88542576,140.06,140.02,4.44]
[1763479205629,9.88542576,140.06,140.03,0.69]
[1763479205826,9.88542576,140.04,139.99,0.69]
[1763479206030,4.44,140.13,140.0,4.44]
[1763479206253,4.44,140.13,139.97,0.69]
[1763479206254,9.78882769,140.11,139.97,0.69]
[1763479206456,18.12096,140.03,139.97,0.69]
[1763479206680,9.88542576,139.99,139.97,0.69]
[1763479206890,9.88542576,139.98,139.96,4.44]
[1763479207057,28.00638576,139.97,139.92,0.69]
[1763479207257,18.12096,139.97,139.92,0.69]
[1763479207453,9.88542576,139.93,139.9,5.13]
[1763479207678,18.12096,139.97,139.9,5.13]
[1763479207679,9.88542576,139.91,139.9,4.44]
[1763479207876,18.12096,139.94,139.9,4.44]
[1763479208064,9.88542576,139.91,139.85,0.69]
[1763479208269,9.88542576,139.88,139.86,5.13]
[1763479208475,18.12096,139.94,139.86,5.13]
[1763479208696,18.12096,139.91,139.86,5.13]
[1763479208992,9.88542576,139.89,139.87,0.69]
[1763479209289,9.88542576,139.93,139.88,9.88542576]
[1763479209496,2.0,140.11,139.9,9.78882769]
[1763479209654,9.88542576,140.16,139.99,9.88542576]
[1763479209655,2.0,140.15,139.99,9.88542576]
[1763479209854,9.88542576,140.16,140.0,4.44]
[1763479209855,9.88542576,140.05,140.0,4.44]
[1763479210296,4.44,140.14,140.01,0.69]
[1763479210297,9.88542576,140.04,140.01,0.69]
[1763479210460,18.12096,140.06,140.01,0.69]
[1763479210665,18.12096,140.08,140.01,0.69]
[1763479210980,10.16111138,140.05,140.01,0.69]
[1763479211287,10.16111138,140.03,140.01,0.69]
[1763479211795,4.44,140.13,140.01,7.83233771]
[1763479212001,2.0,140.23,140.02,9.78882769]
[1763479212300,0.1,140.25,140.06,9.78882769]
[1763479212589,0.1,140.25,140.09,9.78882769]
[1763479212792,10.16111138,140.2,140.14,10.16111138]
[1763479213008,0.1,140.25,140.15,4.44]
[1763479213292,0.1,140.25,140.16,0.7]
[1763479213504,0.1,140.25,140.18,10.16111138]
[1763479213698,0.1,140.25,140.16,0.7]
[1763479214002,0.1,140.25,140.17,9.78882769]
[1763479214200,0.1,140.25,140.2,10.16111138]
[1763479214362,0.1,140.25,140.17,9.78882769]
[1763479214363,0.7879467,140.34,140.21,4.44]
[1763479214563,10.16111138,140.29,140.22,9.78882769]
[1763479214810,18.12096,140.33,140.24,10.16111138]
[1763479215099,5.08549187,140.39,140.32,10.16111138]
[1763479215309,5.08549187,140.39,140.26,18.12096]
[1763479215310,0.1,140.4,140.33,4.44]
[1763479215474,0.1,140.4,140.34,4.44]
[1763479215806,0.4493031,140.47,140.39,10.16111138]
[1763479216100,0.4493031,140.47,140.44,10.16111138]
[1763479216279,0.4493031,140.47,140.45,4.46]
[1763479216480,0.4493031,140.47,140.46,4.46]
[1763479216663,0.4493031,140.47,140.46,14.62111138]
[1763479216866,1e-08,140.47,140.46,14.62111138]
[1763479217081,4.71897976,140.59,140.46,10.16111138]
[1763479217300,21.038411,140.6,140.54,50.0]
[1763479217472,5.40596932,140.59,140.45,4.48]
[1763479217667,21.038411,140.6,140.51,10.16111138]
[1763479217878,10.16111138,140.58,140.45,4.48]
[1763479218178,21.038411,140.6,140.45,4.48]
[1763479218486,21.038411,140.6,140.45,22.60096]
[1763479218666,21.038411,140.6,140.46,24.91812615]
[1763479218874,21.038411,140.6,140.59,10.16111138]
[1763479219209,21.038411,140.6,140.54,4.5]
[1763479219371,21.038411,140.6,140.59,10.16111138]
[1763479219568,21.038411,140.6,140.57,10.16111138]
[1763479220071,21.038411,140.6,140.54,4.5]
[1763479220271,10.87111138,140.59,140.47,4.5]
[1763479220466,10.16111138,140.54,140.47,10.16111138]
[1763479220696,18.12096,140.55,140.46,10.16111138]
[1763479220908,10.16111138,140.52,140.43,11.62091146]
[1763479221065,10.16111138,140.51,140.43,4.5]
[1763479221275,10.16111138,140.49,140.42,10.16111138]
[1763479221499,28.98799214,140.6,140.38,4.5]
[1763479221704,0.71,140.56,140.51,10.16111138]
[1763479221906,21.038411,140.6,140.55,10.16111138]
[1763479222079,21.038411,140.6,140.59,10.16111138]
[1763479222476,1e-08,140.6,140.59,10.16111138]
[1763479222700,1e-08,140.6,140.59,7.11288142]
[1763479222875,1e-08,140.6,140.59,17.2739928]
[1763479223407,1.93593088,140.66,140.62,18.12096]
[1763479223590,1.93593088,140.66,140.63,4.5]
[1763479224382,1.93593088,140.66,140.65,10.16111138]
[1763479224896,1e-08,140.66,140.65,10.16111138]
[1763479225105,11.87027762,140.82,140.69,18.12096]
[1763479225106,7.94958114,140.79,140.69,18.12096]
[1763479225300,7.94958114,140.83,140.77,10.16111138]
[1763479225478,0.71,140.85,140.78,4.5]
[1763479225479,7.94958114,140.85,140.78,4.5]
[1763479225682,10.16111138,140.84,140.78,4.5]
[1763479225888,10.16111138,140.79,140.71,4.5]
[1763479226102,10.16111138,140.8,140.71,4.5]
[1763479226299,18.12096,140.82,140.71,4.5]
[1763479226501,18.12096,140.8,140.67,10.16111138]
[1763479226703,0.71,140.84,140.67,24.88088084]
[1763479226893,10.16111138,140.82,140.75,10.16111138]
[1763479227084,0.71,140.83,140.72,4.5]
[1763479227287,18.12096,140.8,140.6,7.11237553]
[1763479227486,18.12096,140.8,140.65,10.16111138]
[1763479227487,10.16111138,140.73,140.65,10.16111138]
[1763479227688,18.12096,140.76,140.61,4.5]
[1763479227689,10.16111138,140.69,140.61,4.5]
[1763479227918,0.71,140.75,140.68,10.16111138]
[1763479228082,0.71,140.79,140.66,4.52]
[1763479228285,18.12096,140.8,140.69,9.78882769]
[1763479228613,18.12096,140.82,140.71,7.10681543]
[1763479228810,8.65958114,140.86,140.72,4.52]
[1763479228811,10.16111138,140.77,140.72,4.52]
[1763479228983,18.12096,140.78,140.67,4.52]
[1763479229187,10.16111138,140.69,140.63,4.52]
[1763479229385,18.12096,140.76,140.63,14.68111138]
[1763479229600,0.71,140.75,140.65,9.78882769]
[1763479229795,35.96156329,140.89,140.64,10.87214664]
[1763479229796,0.71,140.8,140.7,9.78882769]
[1763479229998,0.71,140.8,140.69,28.28207138]
[1763479229999,10.16111138,140.76,140.71,4.52]
[1763479230315,10.16111138,140.74,140.71,4.52]
[1763479230515,10.16111138,140.76,140.71,4.52]
[1763479230824,4.52,140.83,140.66,4.52]
[1763479230825,10.16111138,140.72,140.66,4.52]
[1763479230987,10.16111138,140.68,140.58,0.71133873]
[1763479231321,0.71,140.71,140.58,14.68111138]
[1763479231522,18.11069252,140.8,140.61,10.16111138]
[1763479231686,10.16111138,140.72,140.64,19.94993907]
[1763479232020,10.16111138,140.71,140.65,4.52]
[1763479232309,10.16111138,140.69,140.65,4.52]
[1763479232511,10.16111138,140.67,140.61,4.52]
[1763479232696,10.16111138,140.65,140.61,4.52]
[1763479233093,10.16111138,140.63,140.61,4.52]
[1763479233490,0.71,140.68,140.61,4.52]
[1763479233690,0.71,140.75,140.63,10.16111138]
[1763479233917,10.16111138,140.71,140.64,0.71103526]
[1763479234123,10.16111138,140.69,140.64,0.71103526]
[1763479234413,10.16111138,140.65,140.55,9.78882769]
[1763479234613,10.16111138,140.6,140.54,12.34693397]
[1763479234817,10.16111138,140.61,140.55,9.78882769]
[1763479235025,0.71,140.64,140.57,9.78882769]
[1763479235026,10.16111138,140.63,140.57,9.78882769]
[1763479235334,20.12096,140.77,140.59,9.78882769]
[1763479235539,4.52,140.77,140.63,10.16111138]
[1763479235817,0.71,140.76,140.64,10.49986295]
[1763479236019,4.52,140.79,140.67,9.78882769]
[1763479236020,0.71,140.79,140.67,9.78882769]
[1763479236185,10.16111138,140.75,140.67,19.94993907]
[1763479236388,10.16111138,140.74,140.67,9.78882769]
[1763479236592,10.16111138,140.74,140.69,7.10782571]
[1763479236811,10.16111138,140.76,140.7,14.30882769]
[1763479237012,10.16111138,140.78,140.72,9.78882769]
[1763479237449,10.16111138,140.81,140.73,0.71058054]
[1763479237589,3.71489077,140.92,140.73,0.71058054]
[1763479237590,10.16111138,140.78,140.73,0.71058054]
[1763479237790,10.16111138,140.78,140.7,4.52]
[1763479237791,10.16111138,140.77,140.7,5.23073205]
[1763479237998,0.71,140.8,140.7,5.23073205]
[1763479237999,0.71,140.8,140.71,9.78882769]
[1763479238211,10.16111138,140.77,140.71,9.78882769]
[1763479238399,10.16111138,140.78,140.72,0.71063104]
[1763479238608,10.16111138,140.76,140.72,0.71063104]
[1763479238811,10.16111138,140.76,140.58,33.55992914]
[1763479238812,28.28207138,140.73,140.62,7.11102873]
[1763479239005,28.28207138,140.73,140.52,50.0]
[1763479239006,10.16111138,140.66,140.61,4.52]
[1763479239194,22.64096,140.73,140.53,0.71159183]
[1763479239195,10.16111138,140.62,140.53,0.71159183]
[1763479239405,10.16111138,140.62,140.45,50.0]
[1763479239406,10.16111138,140.57,140.52,4.52]
[1763479239818,0.71,140.6,140.52,4.52]
[1763479240212,10.16111138,140.55,140.52,4.52]
[1763479240526,0.71,140.6,140.52,4.52]
[1763479240714,10.16111138,140.61,140.55,7.11490572]
[1763479240911,10.16111138,140.58,140.52,11.63599844]
[1763479241103,10.16111138,140.57,140.52,4.52]
[1763479241303,10.16111138,140.55,140.52,4.52]
[1763479241505,10.16111138,140.57,140.52,4.52]
[1763479241703,35.37283487,140.74,140.52,4.52]
[1763479241704,0.71,140.62,140.52,40.30016638]
[1763479241907,10.16111138,140.58,140.52,12.34799323]
[1763479242107,0.71,140.62,140.53,19.94993907]
[1763479242317,10.16111138,140.6,140.53,9.78882769]
[1763479242625,10.16111138,140.59,140.52,40.30016638]
[1763479242829,2.0,140.75,140.54,10.16111138]
[1763479243026,2.0,140.77,140.57,9.78882769]
[1763479243196,4.52,140.78,140.61,27.90978769]
[1763479243395,10.16111138,140.68,140.62,0.71113639]
[1763479243751,10.16111138,140.71,140.64,10.16111138]
[1763479243946,10.16111138,140.69,140.63,4.52]
[1763479244146,10.16111138,140.68,140.63,4.52]
[1763479244330,0.71,140.7,140.63,4.52]
[1763479244331,0.71,140.7,140.63,5.23108582]
[1763479244644,0.71,140.7,140.59,11.65250422]
[1763479244645,10.16111138,140.66,140.59,11.65250422]
[1763479244854,18.12096,140.7,140.59,11.65250422]
[1763479245032,10.16111138,140.64,140.59,4.54]
[1763479245235,2.0,140.81,140.6,10.50006524]
[1763479245546,91.50951028,140.93,140.6,10.50006524]
[1763479245547,10.16111138,140.67,140.62,9.78882769]
[1763479245715,0.71,140.79,140.62,19.94993907]
[1763479245716,10.16111138,140.69,140.62,19.94993907]
[1763479245921,10.16111138,140.71,140.64,9.78882769]
[1763479246122,2.0,140.83,140.65,10.87209609]
[1763479246335,0.71,140.85,140.63,4.54]
[1763479246336,10.16111138,140.7,140.63,4.54]
[1763479246641,10.16111138,140.74,140.65,9.78882769]
[1763479246858,10.16111138,140.74,140.66,10.16111138]
[1763479247028,10.16111138,140.73,140.67,4.54]
[1763479247232,10.16111138,140.7,140.64,4.54]
[1763479247466,0.71,140.72,140.64,4.54]
[1763479247632,18.12096,140.76,140.65,10.16111138]
[1763479247821,10.16111138,140.71,140.64,4.54]
[1763479248024,10.16111138,140.7,140.64,4.54]
[1763479248542,10.16111138,140.72,140.64,14.70111138]
[1763479248850,10.16111138,140.76,140.69,10.16111138]
[1763479249020,0.71,140.78,140.7,14.70111138]
[1763479249220,0.71,140.78,140.7,4.54]
[1763479249445,10.87111138,140.78,140.71,10.16111138]
[1763479249749,10.16111138,140.76,140.7,4.54]
[1763479249924,10.16111138,140.72,140.65,7.7414096]
[1763479250130,10.16111138,140.72,140.66,12.82072337]
[1763479250324,10.16111138,140.7,140.67,5.07931377]
[1763479250525,0.71,140.71,140.68,5.06984388]
[1763479250756,10.16111138,140.69,140.64,11.65033244]
[1763479251052,0.71,140.76,140.66,10.16111138]
[1763479251222,4.54,140.79,140.64,29.42621412]
[1763479251223,10.87111138,140.71,140.64,29.42621412]
[1763479251427,10.16111138,140.7,140.65,5.07206015]
[1763479251639,0.71,140.71,140.64,29.42621412]
[1763479251954,18.12096,140.76,140.66,19.94993907]
[1763479251955,10.16111138,140.73,140.66,19.94993907]
[1763479252257,10.16111138,140.73,140.67,5.07634034]
[1763479252466,10.16111138,140.71,140.68,9.61384848]
[1763479252646,0.71,140.72,140.63,7.7414096]
[1763479252846,10.16111138,140.68,140.64,16.72389601]
[1763479253050,18.12096,140.74,140.66,7.7414096]
[1763479253238,10.16111138,140.71,140.67,5.07385681]
[1763479253441,10.16111138,140.7,140.68,5.07385681]
[1763479253648,0.71,140.73,140.69,5.07058409]
[1763479253846,10.87111138,140.73,140.68,4.54]
[1763479254359,10.87111138,140.72,140.68,4.54]
[1763479254754,10.16111138,140.74,140.69,7.10782571]
[1763479254938,10.16111138,140.74,140.68,11.64817968]
[1763479255136,0.71,140.75,140.68,21.80929106]